fUST/lending_fUST_20250406
["ID","MTS","AMOUNT","RATE_DAILY","PERIOD"]
[357191357,1743879035805,-2000.0,0.00023,3]
[357191358,1743879035816,-2000.0,0.00023,3]
[357191359,1743879035825,-196.21593128,0.00023,2]
[357191360,1743879035834,-151.0,0.00023,7]
[357191361,1743879035844,-150.0,0.00023,2]
[357191362,1743879035853,-1379.73528908,0.00023133,2]
[357191363,1743879035862,-155.386167,0.00023144,3]
[357191364,1743879035871,-500.0,0.00023177,2]
[357191365,1743879035881,-732.99,0.00023177,2]
[357191366,1743879035890,-500.0,0.00023177,2]
[357191367,1743879035899,-500.0,0.00023178,2]
[357191368,1743879035913,-642.36,0.00023178,2]
[357191369,1743879035922,-1341.21,0.00023179,2]
[357191370,1743879035932,-500.0,0.00023179,2]
[357191371,1743879035941,-530.32,0.00023179,2]
[357191372,1743879035951,-587.0,0.00023275,2]
[357191373,1743879035960,-200.0,0.00023287,2]
[357191374,1743879035969,-151.0,0.00023348,7]
[357191375,1743879035977,-151.0,0.00023348,7]
[357191376,1743879035988,-500.0,0.00023451,2]
[357191377,1743879035996,-732.99,0.00023451,2]
[357191378,1743879036006,-500.0,0.00023451,2]
[357191379,1743879036015,-500.0,0.00023452,2]
[357191380,1743879036024,-642.36,0.00023452,2]
[357191381,1743879036033,-1341.21,0.00023453,2]
[357191382,1743879036041,-501.898266,0.00023453,7]
[357191383,1743879036050,-501.898266,0.00023453,7]
[357191384,1743879036059,-500.0,0.00023453,2]
[357191385,1743879036070,-171.842338,0.00023453,7]
[357191386,1743879036079,-171.842338,0.00023453,7]
[357191387,1743879036089,-693.097969,0.00023453,7]
[357191388,1743879036099,-693.097969,0.00023453,7]
[357191389,1743879036107,-151.0,0.00023453,7]
[357191390,1743879036117,-178.777687,0.00023453,7]
[357191391,1743879036126,-178.777687,0.00023453,7]
[357191392,1743879036136,-151.0,0.00023453,7]
[357191393,1743879036145,-151.0,0.00023453,7]
[357191394,1743879036155,-151.0,0.00023453,7]
[357191395,1743879036164,-151.0,0.00023453,7]
[357191396,1743879036174,-151.0,0.00023453,7]
[357191397,1743879036183,-91224.23384752,0.000235,2]
[357191422,1743879037756,-550.43,0.00019616,2]
[357191424,1743879037766,-550.43,0.0001989,2]
[357191426,1743879037775,-550.43,0.00020164,2]
[357191428,1743879037785,-355.11428347,0.00020438,2]
[357191430,1743879037798,-195.31571653,0.00020438,2]
[357191432,1743879037807,-550.43,0.00020712,2]
[357191434,1743879037817,-500.0,0.00020985,2]
[357191435,1743879037826,-500.0,0.00020985,2]
[357191436,1743879037836,-485.34147482,0.00020985,2]
[357191437,1743879037846,-550.43,0.00020986,2]
[357191438,1743879037855,-550.43,0.0002126,2]
[357191439,1743879037865,-550.43,0.00021534,2]
[357191440,1743879037874,-550.43,0.00021808,2]
[357191441,1743879037883,-550.43,0.00022082,2]
[357191442,1743879037894,-550.43,0.00022356,2]
[357191443,1743879037904,-550.43,0.0002263,2]
[357191444,1743879037918,-550.43,0.00022904,2]
[357191445,1743879037928,-550.43,0.00023178,2]
[357191446,1743879037937,-550.43,0.00023452,2]
[357191447,1743879037947,-564.81280865,0.000235,2]
[357191448,1743879038746,-6660.68081601,0.000235,2]
[357191449,1743879038759,-1232.04476299,0.000235,2]
[357191450,1743879038770,-2724.46620968,0.000235,2]
[357191499,1743879042969,-481.3488669,0.00020437,2]
[357191500,1743879042981,-18.6511331,0.00020437,2]
[357191501,1743879042993,-450.2908669,0.00020439,2]
[357191502,1743879043005,-49.7091331,0.00020439,2]
[357191503,1743879043015,-484.50278297,0.00020711,2]
[357191521,1743879046071,-500.0,0.00019616,2]
[357191522,1743879046081,-174.18180244,0.0001989,2]
[357191523,1743879046092,-15.49721703,0.00020711,2]
[357191524,1743879046103,-500.0,0.00020713,2]
[357191525,1743879046113,-500.0,0.00020985,2]
[357191526,1743879046123,-500.0,0.00020987,2]
[357191527,1743879046134,-500.0,0.00021259,2]
[357191528,1743879046143,-500.0,0.00021261,2]
[357191529,1743879046153,-500.0,0.00021533,2]
[357191530,1743879046162,-500.0,0.00021535,2]
[357191531,1743879046172,-500.0,0.00021807,2]
[357191532,1743879046182,-500.0,0.00021809,2]
[357191533,1743879046192,-500.0,0.00022081,2]
[357191534,1743879046202,-500.0,0.00022083,2]
[357191535,1743879046212,-500.0,0.00022355,2]
[357191537,1743879046222,-500.0,0.00022357,2]
[357191538,1743879046232,-500.0,0.00022629,2]
[357191539,1743879046241,-500.0,0.00022631,2]
[357191540,1743879046251,-500.0,0.00022903,2]
[357191542,1743879046260,-500.0,0.00022905,2]
[357191544,1743879046270,-500.0,0.00023177,2]
[357191546,1743879046280,-500.0,0.00023451,2]
[357191547,1743879046289,-31136.18522907,0.000235,2]
[357191548,1743879954140,-402.85170234,0.00019242,2]
[357191549,1743879954162,-321.57983679,0.00019242,2]
[357191550,1743880145103,-178.42016321,0.00019242,2]
[357191551,1743880145124,-500.0,0.00019342,2]
[357191552,1743880145145,-500.0,0.00019342,2]
[357191553,1743880145167,-151.0,0.00019583,2]
[357191554,1743880145191,-152.62776324,0.00019583,2]
[357191555,1743880145212,-300.0,0.00019592,2]
[357191556,1743880145235,-500.0,0.00019593,2]
[357191557,1743880145259,-553.57,0.00019593,2]
[357191558,1743880145280,-500.0,0.00019593,2]
[357191559,1743880145302,-500.0,0.00019593,2]
[357191560,1743880145324,-332.564,0.00019593,2]
[357191561,1743880145349,-531.98,0.00019593,2]
[357191562,1743880145371,-888.81,0.00019593,2]
[357191563,1743880145394,-500.0,0.00019593,2]
[357191564,1743880145417,-500.0,0.00019593,2]
[357191565,1743880145439,-500.0,0.00019593,2]
[357191566,1743880145462,-500.0,0.00019593,2]
[357191567,1743880145484,-500.0,0.00019593,2]
[357191568,1743880145506,-500.0,0.00019593,2]
[357191569,1743880145527,-144.19384192,0.00019593,2]
[357191583,1743880232022,-151.0,0.00019583,2]
[357191586,1743880232033,-200.0,0.00019583,2]
[357191587,1743880232044,-50.0,0.00019592,2]
[357191593,1743880232133,-250.0,0.00019592,2]
[357191595,1743880232144,-355.80615808,0.00019593,2]
[357191597,1743880232156,-500.0,0.00019593,2]
[357191599,1743880232166,-500.0,0.00019593,2]
[357191601,1743880232177,-500.0,0.00019593,2]
[357191603,1743880232188,-647.57,0.00019593,2]
[357191606,1743880232199,-500.0,0.00019593,2]
[357191608,1743880232211,-500.0,0.00019593,2]
[357191610,1743880232221,-500.0,0.00019593,2]
[357191611,1743880232233,-530.51,0.00019593,2]
[357191612,1743880232245,-500.0,0.00019593,2]
[357191613,1743880232256,-500.0,0.00019593,2]
[357191614,1743880232266,-1592.59,0.00019593,2]
[357191615,1743880232277,-500.0,0.00019593,2]
[357191616,1743880232288,-851.78,0.00019593,2]
[357191617,1743880232299,-24900.0,0.00019594,2]
[357191618,1743880232309,-1537.92887275,0.00019767,2]
[357191619,1743880232319,-531.98,0.00019867,2]
[357191620,1743880232330,-500.0,0.00019867,2]
[357191621,1743880232341,-500.0,0.00019867,2]
[357191622,1743880232352,-500.0,0.00019867,2]
[357191623,1743880232365,-500.0,0.00019867,2]
[357191624,1743880232376,-500.0,0.00019867,2]
[357191625,1743880232387,-500.0,0.00019867,2]
[357191626,1743880232399,-500.0,0.00019867,2]
[357191627,1743880232411,-500.0,0.00019867,2]
[357191628,1743880232421,-500.0,0.00019867,2]
[357191629,1743880232431,-500.0,0.00019867,2]
[357191630,1743880232441,-647.57,0.00019867,2]
[357191631,1743880232604,-500.0,0.00019867,2]
[357191632,1743880232621,-500.0,0.00019867,2]
[357191633,1743880232631,-500.0,0.00019867,2]
[357191634,1743880232640,-530.51,0.00019867,2]
[357191635,1743880232650,-500.0,0.00019867,2]
[357191636,1743880232659,-500.0,0.00019867,2]
[357191637,1743880232669,-1592.59,0.00019867,2]
[357191638,1743880232679,-500.0,0.00019867,2]
[357191639,1743880232690,-851.78,0.00019867,2]
[357191640,1743880232699,-160.0,0.00020034,2]
[357191641,1743880232709,-12522.71377557,0.00020034,2]
[357191642,1743880232719,-160.0,0.00020034,2]
[357191643,1743880232729,-152.70314045,0.00020041,5]
[357191644,1743880232738,-531.98,0.00020141,2]
[357191645,1743880232748,-500.0,0.00020141,2]
[357191646,1743880232758,-500.0,0.00020141,2]
[357191647,1743880232768,-421.47719762,0.00020141,2]
[357191648,1743880232778,-500.0,0.00020141,2]
[357191649,1743880232788,-500.0,0.00020141,2]
[357191650,1743880232797,-500.0,0.00020141,2]
[357191651,1743880232807,-500.0,0.00020141,2]
[357191652,1743880232816,-500.0,0.00020141,2]
[357191653,1743880232826,-500.0,0.00020141,2]
[357191654,1743880232836,-500.0,0.00020141,2]
[357191655,1743880232845,-647.57,0.00020141,2]
[357191656,1743880232855,-500.0,0.00020141,2]
[357191657,1743880232864,-500.0,0.00020141,2]
[357191658,1743880232874,-500.0,0.00020141,2]
[357191659,1743880232884,-530.51,0.00020141,2]
[357191660,1743880232893,-500.0,0.00020141,2]
[357191661,1743880232903,-500.0,0.00020141,2]
[357191662,1743880232912,-1592.59,0.00020141,2]
[357191663,1743880232922,-500.0,0.00020141,2]
[357191664,1743880232933,-851.78,0.00020141,2]
[357191665,1743880232943,-500.0,0.00020163,2]
[357191666,1743880232954,-3514.22574046,0.00020338,2]
[357191667,1743880232963,-531.98,0.00020415,2]
[357191668,1743880232972,-500.0,0.00020415,2]
[357191669,1743880232983,-500.0,0.00020415,2]
[357191670,1743880232992,-446.50191226,0.00020415,2]
[357191671,1743880233002,-500.0,0.00020415,2]
[357191672,1743880233012,-600.21259898,0.00020415,2]
[357191673,1743880233022,-500.0,0.00020415,2]
[357191674,1743880233031,-500.0,0.00020415,2]
[357191675,1743880233041,-500.0,0.00020415,2]
[357191676,1743880233051,-500.0,0.00020415,2]
[357191677,1743880233061,-647.57,0.00020415,2]
[357191678,1743880233071,-500.0,0.00020415,2]
[357191679,1743880233090,-500.0,0.00020415,2]
[357191680,1743880233103,-500.0,0.00020415,2]
[357191681,1743880233114,-530.51,0.00020415,2]
[357191682,1743880233124,-500.0,0.00020415,2]
[357191683,1743880233134,-586.94914499,0.00020415,2]
[357191684,1743880233145,-1592.59,0.00020415,2]
[357191685,1743880233156,-500.0,0.00020415,2]
[357191686,1743880233166,-851.78,0.00020415,2]
[357191687,1743880233177,-500.0,0.00020437,2]
[357191688,1743880233188,-531.98,0.00020689,2]
[357191689,1743880233198,-500.0,0.00020689,2]
[357191690,1743880233209,-500.0,0.00020689,2]
[357191691,1743880233219,-500.0,0.00020689,2]
[357191692,1743880233229,-500.0,0.00020689,2]
[357191693,1743880233240,-500.0,0.00020689,2]
[357191694,1743880233250,-500.0,0.00020689,2]
[357191695,1743880233260,-500.0,0.00020689,2]
[357191696,1743880233271,-647.57,0.00020689,2]
[357191697,1743880233281,-500.0,0.00020689,2]
[357191698,1743880233291,-500.0,0.00020689,2]
[357191699,1743880233302,-500.0,0.00020689,2]
[357191700,1743880233312,-530.51,0.00020689,2]
[357191701,1743880233322,-500.0,0.00020689,2]
[357191702,1743880233332,-1592.59,0.00020689,2]
[357191703,1743880233343,-500.0,0.00020689,2]
[357191704,1743880233358,-851.78,0.00020689,2]
[357191705,1743880233368,-500.0,0.00020711,2]
[357191706,1743880233379,-1809.47206031,0.000209,3]
[357191707,1743880233390,-207.4,0.00020952,2]
[357191708,1743880233401,-531.98,0.00020963,2]
[357191709,1743880233411,-500.0,0.00020963,2]
[357191710,1743880233422,-500.0,0.00020963,2]
[357191711,1743880233433,-603.19319634,0.00020963,2]
[357191712,1743880233444,-500.0,0.00020963,2]
[357191713,1743880233455,-500.0,0.00020963,2]
[357191714,1743880233466,-500.0,0.00020963,2]
[357191715,1743880233477,-500.0,0.00020963,2]
[357191716,1743880233487,-647.57,0.00020963,2]
[357191717,1743880233497,-500.0,0.00020963,2]
[357191718,1743880233508,-500.0,0.00020963,2]
[357191719,1743880233518,-500.0,0.00020963,2]
[357191720,1743880233529,-530.51,0.00020963,2]
[357191721,1743880233538,-500.0,0.00020963,2]
[357191722,1743880233549,-1592.59,0.00020963,2]
[357191723,1743880233559,-500.0,0.00020963,2]
[357191724,1743880233569,-851.78,0.00020963,2]
[357191725,1743880233579,-150.347,0.00020975,2]
[357191726,1743880233590,-207.137,0.00020975,2]
[357191727,1743880233600,-542.0,0.00020975,2]
[357191728,1743880233610,-1478.0,0.00020975,2]
[357191729,1743880233620,-2265.0,0.00020975,2]
[357191730,1743880233631,-500.0,0.00020983,2]
[357191731,1743880233642,-578.66605748,0.00020983,2]
[357191732,1743880233653,-500.0,0.00020983,2]
[357191733,1743880233663,-500.0,0.00020983,2]
[357191734,1743880233673,-500.0,0.00020983,2]
[357191735,1743880233683,-500.0,0.00020983,2]
[357191736,1743880233694,-500.0,0.00020983,2]
[357191737,1743880233704,-500.0,0.00020983,2]
[357191738,1743880233714,-500.0,0.00020983,2]
[357191739,1743880233724,-500.0,0.00020983,2]
[357191740,1743880233734,-500.0,0.00020983,2]
[357191741,1743880233744,-500.0,0.00020983,2]
[357191742,1743880233754,-500.0,0.00020985,2]
[357191743,1743880233764,-178.139,0.00021082,2]
[357191744,1743880233775,-204.54017273,0.00021082,2]
[357191745,1743880233784,-531.98,0.00021237,2]
[357191746,1743880233794,-500.0,0.00021237,2]
[357191747,1743880233804,-500.0,0.00021237,2]
[357191748,1743880233814,-500.0,0.00021237,2]
[357191749,1743880233823,-500.0,0.00021237,2]
[357191750,1743880233833,-234.3473,0.00021237,2]
[357191751,1743880233843,-537.11882725,0.00021237,2]
[357191752,1743880233853,-647.57,0.00021237,2]
[357191753,1743880233864,-500.0,0.00021237,2]
[357191754,1743880233874,-500.0,0.00021237,2]
[357191755,1743880233884,-500.0,0.00021237,2]
[357191756,1743880233894,-530.51,0.00021237,2]
[357191757,1743880233904,-500.0,0.00021237,2]
[357191758,1743880233914,-1592.59,0.00021237,2]
[357191759,1743880233924,-500.0,0.00021237,2]
[357191760,1743880233934,-851.78,0.00021237,2]
[357191761,1743880233945,-500.0,0.00021257,2]
[357191762,1743880233955,-500.0,0.00021257,2]
[357191763,1743880233965,-500.0,0.00021257,2]
[357191764,1743880233975,-500.0,0.00021257,2]
[357191765,1743880233985,-500.0,0.00021257,2]
[357191766,1743880233994,-500.0,0.00021257,2]
[357191767,1743880234004,-500.0,0.00021257,2]
[357191768,1743880234015,-500.0,0.00021257,2]
[357191769,1743880234024,-500.0,0.00021257,2]
[357191770,1743880234034,-500.0,0.00021257,2]
[357191771,1743880234044,-500.0,0.00021257,2]
[357191772,1743880234054,-500.0,0.00021259,2]
[357191773,1743880234065,-420.0,0.00021342,2]
[357191774,1743880234075,-500.0,0.00021375,2]
[357191775,1743880234084,-500.0,0.00021375,2]
[357191776,1743880234094,-500.0,0.00021375,2]
[357191777,1743880234104,-500.0,0.00021428,2]
[357191778,1743880234114,-500.0,0.00021428,2]
[357191779,1743880234124,-500.0,0.00021428,2]
[357191780,1743880234135,-500.0,0.00021428,2]
[357191781,1743880234145,-500.0,0.00021428,2]
[357191782,1743880234154,-500.0,0.00021428,2]
[357191783,1743880234164,-531.98,0.00021511,2]
[357191784,1743880234174,-500.0,0.00021511,2]
[357191785,1743880234184,-187.89449267,0.00021511,2]
[357191786,1743880234194,-500.0,0.00021511,2]
[357191787,1743880234204,-500.0,0.00021511,2]
[357191788,1743880234215,-647.57,0.00021511,2]
[357191789,1743880234225,-500.0,0.00021511,2]
[357191790,1743880234236,-500.0,0.00021511,2]
[357191791,1743880234247,-500.0,0.00021511,2]
[357191792,1743880234257,-530.51,0.00021511,2]
[357191793,1743880234267,-500.0,0.00021511,2]
[357191794,1743880234277,-1592.59,0.00021511,2]
[357191795,1743880234289,-500.0,0.00021511,2]
[357191796,1743880234299,-851.78,0.00021511,2]
[357191797,1743880234310,-500.0,0.00021515,2]
[357191798,1743880234320,-500.0,0.00021515,2]
[357191799,1743880234331,-500.0,0.00021515,2]
[357191800,1743880234341,-548.65386863,0.00021515,2]
[357191801,1743880234351,-502.83658789,0.00021515,2]
[357191802,1743880234364,-500.0,0.00021515,2]
[357191803,1743880234374,-500.0,0.00021515,2]
[357191804,1743880234385,-500.0,0.00021531,2]
[357191805,1743880234396,-500.0,0.00021531,2]
[357191806,1743880234405,-500.0,0.00021531,2]
[357191807,1743880234415,-500.0,0.00021531,2]
[357191808,1743880234426,-500.0,0.00021531,2]
[357191809,1743880234437,-500.0,0.00021531,2]
[357191810,1743880234447,-500.0,0.00021531,2]
[357191811,1743880234458,-500.0,0.00021531,2]
[357191812,1743880234467,-500.0,0.00021531,2]
[357191813,1743880234478,-500.0,0.00021531,2]
[357191814,1743880234488,-500.0,0.00021531,2]
[357191815,1743880234498,-500.0,0.00021533,2]
[357191816,1743880234511,-1809.47206029,0.00021555,3]
[357191817,1743880234521,-500.0,0.00021593,2]
[357191818,1743880234533,-2198.17364387,0.00021666,2]
[357191819,1743880234543,-500.0,0.00021773,2]
[357191820,1743880234553,-531.98,0.00021785,2]
[357191821,1743880234563,-500.0,0.00021785,2]
[357191822,1743880234573,-500.0,0.00021785,2]
[357191823,1743880234582,-500.0,0.00021785,2]
[357191824,1743880234592,-647.57,0.00021785,2]
[357191825,1743880234602,-500.0,0.00021785,2]
[357191826,1743880234612,-500.0,0.00021785,2]
[357191827,1743880234621,-500.0,0.00021785,2]
[357191828,1743880234631,-530.51,0.00021785,2]
[357191829,1743880234642,-500.0,0.00021785,2]
[357191830,1743880234652,-1592.59,0.00021785,2]
[357191831,1743880234662,-500.0,0.00021785,2]
[357191832,1743880234675,-851.78,0.00021785,2]
[357191833,1743880234685,-500.0,0.00021805,2]
[357191834,1743880234695,-500.0,0.00021805,2]
[357191835,1743880234705,-500.0,0.00021805,2]
[357191836,1743880234714,-500.0,0.00021805,2]
[357191837,1743880234725,-500.0,0.00021805,2]
[357191838,1743880234735,-500.0,0.00021805,2]
[357191839,1743880234744,-500.0,0.00021805,2]
[357191840,1743880234753,-500.0,0.00021805,2]
[357191841,1743880234763,-500.0,0.00021805,2]
[357191842,1743880234770,-500.0,0.00021805,2]
[357191843,1743880234780,-213.83267719,0.00021805,2]
[357191891,1743880237915,-500.0,0.00019593,2]
[357191893,1743880237925,-500.0,0.00019867,2]
[357191895,1743880237935,-500.0,0.00020141,2]
[357191897,1743880237945,-500.0,0.00021804,2]
[357191899,1743880237954,-486.15549662,0.00021804,2]
[357191901,1743880237963,-286.16732281,0.00021805,2]
[357191903,1743880237973,-500.0,0.00021807,2]
[357191906,1743880237982,-264.65067899,0.00021873,2]
[357191909,1743880237992,-200.0,0.00021917,2]
[357191911,1743880238002,-500.0,0.0002193,2]
[357191913,1743880238011,-500.0,0.0002193,2]
[357191915,1743880238020,-500.0,0.0002193,2]
[357191917,1743880238029,-1116.33652237,0.00022056,2]
[357191919,1743880238039,-531.98,0.00022059,2]
[357191920,1743880238048,-500.0,0.00022059,2]
[357191922,1743880238057,-500.0,0.00022059,2]
[357191924,1743880238066,-487.03461767,0.00022059,2]
[357191926,1743880238078,-160.53538233,0.00022059,2]
[357191928,1743880238087,-500.0,0.00022059,2]
[357191930,1743880238096,-500.0,0.00022059,2]
[357191932,1743880238105,-340.05449955,0.00022059,2]
[357191936,1743880238136,-159.94550045,0.00022059,2]
[357191938,1743880238145,-530.51,0.00022059,2]
[357191940,1743880238154,-500.0,0.00022059,2]
[357191942,1743880238165,-1592.59,0.00022059,2]
[357191944,1743880238174,-500.0,0.00022059,2]
[357191946,1743880238184,-851.78,0.00022059,2]
[357191948,1743880238194,-500.0,0.00022079,2]
[357191950,1743880238203,-500.0,0.00022079,2]
[357191952,1743880238212,-500.0,0.00022079,2]
[357191954,1743880238222,-500.0,0.00022079,2]
[357191956,1743880238231,-500.0,0.00022079,2]
[357191958,1743880238240,-500.0,0.00022079,2]
[357191960,1743880238251,-500.0,0.00022079,2]
[357191962,1743880238261,-500.0,0.00022079,2]
[357191964,1743880238271,-500.0,0.00022079,2]
[357191967,1743880238280,-500.0,0.00022079,2]
[357191981,1743880238419,-500.0,0.00022079,2]
[357191983,1743880238430,-500.0,0.00022081,2]
[357191985,1743880238440,-1809.47206029,0.0002221,3]
[357191987,1743880238451,-138.40823166,0.00022305,2]
[357191989,1743880238464,-312.17734858,0.00022305,2]
[357191991,1743880238474,-215.0738,0.00022321,2]
[357191993,1743880238483,-531.98,0.00022333,2]
[357191995,1743880238493,-274.86430069,0.00022333,2]
[357191998,1743880238503,-500.0,0.00022333,2]
[357192000,1743880238513,-647.57,0.00022333,2]
[357192002,1743880238524,-500.0,0.00022333,2]
[357192004,1743880238533,-500.0,0.00022333,2]
[357192006,1743880238543,-500.0,0.00022333,2]
[357192008,1743880238553,-530.51,0.00022333,2]
[357192010,1743880238562,-500.0,0.00022333,2]
[357192012,1743880238572,-1592.59,0.00022333,2]
[357192014,1743880238582,-500.0,0.00022333,2]
[357192016,1743880238591,-851.78,0.00022333,2]
[357192017,1743880238600,-269.52147893,0.00022353,2]
[357192019,1743880238610,-500.0,0.00022353,2]
[357192021,1743880238620,-500.0,0.00022353,2]
[357192023,1743880238629,-500.0,0.00022353,2]
[357192024,1743880238639,-500.0,0.00022353,2]
[357192025,1743880238649,-75.8066982,0.00022353,2]
[357192041,1743880240170,-500.0,0.00020415,2]
[357192043,1743880240180,-500.0,0.00020689,2]
[357192044,1743880240189,-500.0,0.00020963,2]
[357192045,1743880240199,-500.0,0.00021237,2]
[357192046,1743880240209,-500.0,0.00021511,2]
[357192047,1743880240218,-500.0,0.00021785,2]
[357192048,1743880240227,-500.0,0.00022059,2]
[357192049,1743880240236,-499.85440902,0.00022333,2]
[357192050,1743880240246,-424.1933018,0.00022353,2]
[357192051,1743880240255,-500.0,0.00022353,2]
[357192052,1743880240264,-500.0,0.00022353,2]
[357192053,1743880240274,-500.0,0.00022353,2]
[357192054,1743880240283,-500.0,0.00022353,2]
[357192055,1743880240293,-500.0,0.00022353,2]
[357192056,1743880240302,-500.0,0.00022355,2]
[357192057,1743880240313,-1100.0,0.00022568,2]
[357192058,1743880240323,-531.98,0.00022607,2]
[357192059,1743880240332,-500.0,0.00022607,2]
[357192060,1743880240342,-647.57,0.00022607,2]
[357192061,1743880240352,-500.0,0.00022607,2]
[357192062,1743880240362,-500.0,0.00022607,2]
[357192063,1743880240374,-500.0,0.00022607,2]
[357192064,1743880240383,-530.51,0.00022607,2]
[357192065,1743880240392,-500.0,0.00022607,2]
[357192066,1743880240402,-1592.59,0.00022607,2]
[357192067,1743880240414,-500.0,0.00022607,2]
[357192068,1743880240423,-851.78,0.00022607,2]
[357192069,1743880240433,-500.0,0.00022627,2]
[357192070,1743880240442,-500.0,0.00022627,2]
[357192071,1743880240453,-500.0,0.00022627,2]
[357192072,1743880240462,-500.0,0.00022627,2]
[357192073,1743880240471,-500.0,0.00022627,2]
[357192074,1743880240481,-500.0,0.00022627,2]
[357192075,1743880240490,-500.0,0.00022627,2]
[357192076,1743880240499,-500.0,0.00022627,2]
[357192077,1743880240508,-500.0,0.00022627,2]
[357192078,1743880240517,-500.0,0.00022627,2]
[357192079,1743880240526,-500.0,0.00022629,2]
[357192080,1743880240535,-1537.92887269,0.00022643,2]
[357192081,1743880240545,-326.2849104,0.00022794,2]
[357192082,1743880240554,-1809.47206029,0.00022866,4]
[357192083,1743880240564,-531.98,0.00022881,2]
[357192084,1743880240573,-500.0,0.00022881,2]
[357192085,1743880240582,-647.57,0.00022881,2]
[357192086,1743880240591,-500.0,0.00022881,2]
[357192087,1743880240600,-500.0,0.00022881,2]
[357192088,1743880240610,-500.0,0.00022881,2]
[357192089,1743880240619,-530.51,0.00022881,2]
[357192090,1743880240629,-500.0,0.00022881,2]
[357192091,1743880240638,-1592.59,0.00022881,2]
[357192092,1743880240648,-183.2785921,0.00022881,2]
[357192093,1743880240658,-851.78,0.00022881,2]
[357192094,1743880240667,-500.0,0.00022901,2]
[357192095,1743880240677,-500.0,0.00022901,2]
[357192096,1743880240686,-500.0,0.00022901,2]
[357192097,1743880240695,-500.0,0.00022901,2]
[357192098,1743880240704,-500.0,0.00022901,2]
[357192099,1743880240713,-500.0,0.00022901,2]
[357192100,1743880240722,-500.0,0.00022901,2]
[357192101,1743880240732,-500.0,0.00022901,2]
[357192102,1743880240741,-500.0,0.00022901,2]
[357192103,1743880240750,-500.0,0.00022901,2]
[357192104,1743880240760,-240.19572755,0.00022903,2]
[357192105,1743880240769,-531.98,0.00023155,2]
[357192106,1743880240778,-500.0,0.00023155,2]
[357192107,1743880240787,-647.57,0.00023155,2]
[357192108,1743880240798,-477.80325932,0.00023155,2]
[357192109,1743880240807,-500.0,0.00023155,2]
[357192110,1743880240816,-500.0,0.00023155,2]
[357192111,1743880240825,-530.51,0.00023155,2]
[357192112,1743880240834,-500.0,0.00023155,2]
[357192113,1743880240844,-1592.59,0.00023155,2]
[357192114,1743880240853,-27.89767337,0.00023155,2]
[357192115,1743880240865,-823.88232663,0.00023155,2]
[357192116,1743880240874,-217.56419373,0.00023175,2]
[357192117,1743880240886,-282.43580627,0.00023175,2]
[357192118,1743880240895,-500.0,0.00023175,2]
[357192119,1743880240905,-500.0,0.00023175,2]
[357192120,1743880240916,-500.0,0.00023175,2]
[357192121,1743880240926,-500.0,0.00023175,2]